fUSD/lending_fUSD_20250526
["ID","MTS","AMOUNT","RATE_DAILY","PERIOD"]
[362387041,1748245219535,-448.91088443,0.00041671,60]
[362387042,1748245219561,-1578.33791154,0.00041671,120]
[362387043,1748245219587,-3011.96615141,0.00041671,120]
[362387044,1748245219612,-2496.11,0.00041671,60]
[362387045,1748245219638,-1255.54143216,0.00041671,60]
[362387046,1748245219666,-3394.81,0.00041671,120]
[362387047,1748245219694,-3394.81,0.00041671,120]
[362387048,1748245219722,-3394.81,0.00041671,120]
[362387049,1748245219751,-3394.81,0.00041671,120]
[362387050,1748245219779,-3394.81,0.00041671,120]
[362387051,1748245219809,-3394.81,0.00041671,120]
[362387052,1748245219837,-3394.81,0.00041671,120]
[362387053,1748245219866,-3394.81,0.00041671,120]
[362387054,1748245219895,-3394.81,0.00041671,120]
[362387055,1748245219922,-3394.81,0.00041671,120]
[362387056,1748245219950,-3394.81,0.00041671,120]
[362387057,1748245219982,-3394.81,0.00041671,120]
[362387058,1748245220010,-3394.81,0.00041671,120]
[362387059,1748245220037,-3394.81,0.00041671,120]
[362387060,1748245220063,-3394.81,0.00041671,120]
[362387061,1748245220097,-3394.81,0.00041671,120]
[362387062,1748245220125,-3394.81,0.00041671,120]
[362387063,1748245220152,-3394.81,0.00041671,120]
[362387064,1748245220179,-3394.81,0.00041671,120]
[362387065,1748245220206,-3394.81,0.00041671,120]
[362387066,1748245220233,-3394.81,0.00041671,120]
[362387067,1748245220261,-3394.81,0.00041671,120]
[362387068,1748245220289,-3394.81,0.00041671,120]
[362387069,1748245220316,-3394.82568859,0.00041671,120]
[362387070,1748245220342,-2357.47,0.00041671,120]
[362387071,1748245220368,-2357.47,0.00041671,120]
[362387072,1748245220394,-2357.47,0.00041671,120]
[362387073,1748245220419,-2357.47,0.00041671,120]
[362387074,1748245220445,-2357.47,0.00041671,120]
[362387075,1748245220476,-2357.47,0.00041671,120]
[362387076,1748245220502,-3000.0,0.00041671,120]
[362387077,1748245220528,-2357.47,0.00041671,120]
[362387078,1748245220556,-2357.47,0.00041671,120]
[362387079,1748245220582,-2357.47,0.00041671,120]
[362387080,1748245220607,-2357.47,0.00041671,120]
[362387081,1748245220634,-2357.47,0.00041671,120]
[362387082,1748245220660,-2357.47,0.00041671,120]
[362387083,1748245220686,-2357.47,0.00041671,120]
[362387084,1748245220712,-2357.47,0.00041671,120]
[362387085,1748245220737,-1000.0,0.00041671,30]
[362387086,1748245220763,-2357.47,0.00041671,120]
[362387087,1748245220790,-2357.47,0.00041671,120]
[362387088,1748245220815,-2357.47,0.00041671,120]
[362387089,1748245220841,-2357.47,0.00041671,120]
[362387090,1748245220867,-2357.47,0.00041671,120]
[362387091,1748245220895,-2357.47,0.00041671,120]
[362387092,1748245220924,-2357.47,0.00041671,120]
[362387093,1748245220950,-2357.47,0.00041671,120]
[362387094,1748245220976,-2357.47,0.00041671,120]
[362387095,1748245221002,-2357.65885145,0.00041671,120]
[362387096,1748245221029,-1165.0,0.00041671,31]
[362387097,1748245221055,-1165.0,0.00041671,31]
[362387098,1748245221080,-1166.0,0.00041671,31]
[362387099,1748245221106,-1165.0,0.00041671,31]
[362387100,1748245221132,-1000.0,0.00041671,30]
[362387101,1748245221159,-1000.0,0.00041671,30]
[362387102,1748245221185,-1000.0,0.00041671,30]
[362387103,1748245221212,-1000.0,0.00041671,30]
[362387104,1748245221239,-1000.0,0.00041671,30]
[362387105,1748245221265,-1000.0,0.00041671,30]
[362387106,1748245221292,-2000.0,0.00041671,60]
[362387107,1748245221319,-1000.0,0.00041671,30]
[362387108,1748245221346,-1000.0,0.00041671,30]
[362387109,1748245221373,-1000.0,0.00041671,30]
[362387110,1748245221400,-1000.0,0.00041671,30]
[362387111,1748245221426,-1000.0,0.00041671,30]
[362387112,1748245221453,-1000.0,0.00041671,30]
[362387113,1748245221482,-1000.0,0.00041671,30]
[362387114,1748245221654,-1000.0,0.00041671,30]
[362387115,1748245221684,-816.25615673,0.00041671,30]
[362387116,1748245221709,-1000.0,0.00041671,30]
[362387117,1748245221735,-295.32052916,0.00041671,30]
[362387118,1748245221762,-797.93452477,0.00041671,30]
[362387119,1748245221789,-1000.0,0.00041671,120]
[362387120,1748245221816,-2936.0,0.00041671,30]
[362387121,1748245221841,-1000.0,0.00041671,60]
[362387122,1748245221868,-2188.0,0.00041671,30]
[362387123,1748245221892,-1000.0,0.00041671,60]
[362387124,1748245221918,-500.0,0.00041671,120]
[362387125,1748245221943,-500.0,0.00041671,120]
[362387126,1748245221970,-500.0,0.00041671,120]
[362387127,1748245221995,-270.0998587,0.00041671,120]
[362387128,1748245222020,-1454.0,0.00041671,30]
[362387129,1748245222046,-1000.0,0.00041671,30]
[362387130,1748245222072,-707.2333039,0.00041671,60]
[362387131,1748245222099,-500.0,0.00041671,120]
[362387132,1748245222125,-500.0,0.00041671,120]
[362387133,1748245222151,-500.0,0.00041671,120]
[362387134,1748245222177,-500.0,0.00041671,120]
[362387135,1748245222203,-500.0,0.00041671,120]
[362387136,1748245222228,-308.20520831,0.00041671,120]
[362387137,1748245222252,-506.35785204,0.00041671,120]
[362387138,1748245222278,-132990.95221268,0.00041671,120]
[362387139,1748245222304,-132990.95221268,0.00041671,120]
[362387140,1748245222330,-132990.95221268,0.00041671,120]
[362387141,1748245222356,-10691.57620891,0.00041671,120]
[362387142,1748245222382,-10691.57620891,0.00041671,120]
[362387143,1748245222410,-5631.87035835,0.00041671,120]
[362387144,1748245226412,-5059.70585056,0.00041671,120]
[362387145,1748245226440,-3559.22565552,0.00041671,120]
[362387146,1748245226468,-3559.22565552,0.00041671,120]
[362387147,1748245226496,-3559.22565552,0.00041671,120]
[362387148,1748245226525,-4302.05400139,0.00041671,120]
[362387149,1748245226551,-4302.05400139,0.00041671,120]
[362387150,1748245226579,-4302.05400139,0.00041671,120]
[362387151,1748245226606,-5000.0,0.00041671,33]
[362387152,1748245226633,-5000.0,0.00041671,34]
[362387153,1748245226660,-5000.0,0.00041671,35]
[362387154,1748245226688,-3416.62,0.00041671,120]
[362387155,1748245226720,-3416.62,0.00041671,120]
[362387156,1748245226748,-3416.62,0.00041671,120]
[362387157,1748245226783,-3416.62,0.00041671,120]
[362387158,1748245226810,-3416.62,0.00041671,120]
[362387159,1748245226839,-3416.62,0.00041671,120]
[362387160,1748245226868,-3416.62,0.00041671,120]
[362387161,1748245226897,-3416.62,0.00041671,120]
[362387162,1748245226924,-3416.62,0.00041671,120]
[362387163,1748245226952,-3416.62,0.00041671,120]
[362387164,1748245226980,-3416.62,0.00041671,120]
[362387165,1748245227008,-3416.62,0.00041671,120]
[362387166,1748245227036,-3416.62,0.00041671,120]
[362387167,1748245227064,-3416.62,0.00041671,120]
[362387168,1748245227093,-3416.62,0.00041671,120]
[362387169,1748245227121,-3416.62,0.00041671,120]
[362387170,1748245227149,-3416.62,0.00041671,120]
[362387171,1748245227177,-3416.62,0.00041671,120]
[362387172,1748245227207,-3416.62,0.00041671,120]
[362387173,1748245227234,-3416.62,0.00041671,120]
[362387174,1748245227263,-3416.62,0.00041671,120]
[362387175,1748245227291,-3416.62,0.00041671,120]
[362387176,1748245227319,-3416.62,0.00041671,120]
[362387177,1748245227347,-3416.84054654,0.00041671,120]
[362387178,1748245227374,-4685.96772706,0.00041671,120]
[362387179,1748245227400,-15999.999999,0.00041671,120]
[362387180,1748245227426,-11852.21145064,0.00041671,120]
[362387181,1748245227645,-4208.83558978,0.00041671,120]
[362387182,1748245227671,-3638.31620737,0.00041671,30]
[362387183,1748245227697,-3715.5949514,0.00041671,120]
[362387184,1748245227725,-13122.39382711,0.00041671,120]
[362387185,1748245227752,-6851.27904169,0.00041671,120]
[362387186,1748245227780,-3608.29155094,0.00041671,120]
[362387187,1748245227806,-4208.81017899,0.00041671,120]
[362387188,1748245227835,-7042.38488446,0.00041671,30]
[362387189,1748245227862,-4005.5511673,0.00041671,30]
[362387190,1748245227888,-3634.15055192,0.00041671,120]
[362387191,1748245227915,-741.09829403,0.00041671,120]
[362387192,1748245227943,-50820.0,0.00041671,120]
[362387193,1748245227969,-10175.0,0.00041671,120]
[362387194,1748245227995,-587.6,0.00041671,120]
[362387195,1748245228023,-5837.92873,0.00041671,120]
[362387196,1748245228050,-5000.0,0.00041671,31]
[362387197,1748245228076,-5000.0,0.00041671,60]
[362387198,1748245228102,-35044.17148886,0.00041671,60]
[362387199,1748245228128,-10000.0,0.00041671,30]
[362387200,1748245228157,-10000.0,0.00041671,30]
[362387201,1748245228186,-10000.0,0.00041671,30]
[362387202,1748245228213,-10000.0,0.00041671,30]
[362387203,1748245228240,-10000.0,0.00041671,30]
[362387204,1748245228269,-10000.0,0.00041671,30]
[362387205,1748245228300,-1226.0,0.00041671,120]
[362387206,1748245228326,-20015.0,0.00041671,120]
[362387207,1748245228353,-6734.17171845,0.00041671,90]
[362387208,1748245228379,-288215.0,0.00041671,60]
[362387209,1748245228405,-1514.97838884,0.00041671,120]
[362387210,1748245228430,-1146.20900402,0.00041671,120]
[362387211,1748245228457,-2810.94040911,0.00041671,120]
[362387212,1748245228486,-2241.18640749,0.00041671,120]
[362387213,1748245228513,-428717.0,0.00041671,120]
[362387214,1748245228540,-10000.0,0.00041671,120]
[362387215,1748245228566,-10000.0,0.00041671,120]
[362387216,1748245228592,-10000.0,0.00041671,120]
[362387217,1748245228618,-10000.0,0.00041671,120]
[362387218,1748245228645,-10000.0,0.00041671,120]
[362387219,1748245228670,-8345.33450563,0.00041671,120]
[362387220,1748245228696,-8804.87258636,0.00041671,30]
[362387221,1748245228722,-65450.0,0.00041671,120]
[362387222,1748245228747,-1677.06589671,0.00041671,120]
[362387223,1748245228773,-11457.6900893,0.00041671,120]
[362387224,1748245228799,-2865.48264352,0.00041671,45]
[362387225,1748245228825,-2177.93003519,0.00041671,30]
[362387226,1748245228851,-1294.44715579,0.00041671,38]
[362387227,1748245228877,-1143837.0,0.00041671,60]
[362387228,1748245228904,-900716.78,0.00041671,90]
[362387229,1748245228929,-5000.0,0.00041671,32]
[362387230,1748245228975,-5452.4607323,0.00041671,30]
[362387231,1748245229005,-5000.0,0.00041671,30]
[362387232,1748245229033,-107706.80392611,0.00041671,120]
[362387233,1748245229061,-5029.47913232,0.00041671,30]
[362387234,1748245229088,-4524.52127736,0.00041671,30]
[362387235,1748245229116,-239561.58310059,0.00041671,30]
[362387236,1748245229146,-500.0,0.00041671,120]
[362387237,1748245229176,-200.0,0.00041671,120]
[362387238,1748245229204,-1780.27453826,0.00041671,120]
[362387239,1748245229235,-1780.27453826,0.00041671,120]
[362387240,1748245229267,-1780.27453826,0.00041671,120]
[362387241,1748245229295,-360.1206114,0.00041671,120]
[362387242,1748245229323,-360.1206114,0.00041671,120]
[362387243,1748245229353,-360.1206114,0.00041671,120]
[362387244,1748245229381,-164.55962388,0.00041671,120]
[362387245,1748245229409,-209.1,0.00041671,30]
[362387246,1748245229441,-500.0,0.00041671,120]
[362387247,1748245229477,-433.12474777,0.00041671,120]
[362387248,1748245229507,-174.95875093,0.00041671,60]
[362387249,1748245229536,-13675.09106062,0.00041671,120]
[362387250,1748245229564,-1292.62216337,0.00041671,30]
[362387251,1748245229592,-582.42160128,0.00041671,120]
[362387252,1748245229620,-721.60891429,0.00041671,30]
[362387253,1748245229651,-165.13564289,0.00041671,60]
[362387254,1748245229681,-369.16459536,0.00041671,31]
[362387255,1748245229711,-150.83121379,0.00041671,60]
[362387256,1748245229739,-575.77069341,0.00041671,30]
[362387257,1748245229768,-1385.73278912,0.00041671,120]
[362387258,1748245229796,-508.81779614,0.00041671,30]
[362387259,1748245229825,-3060.11430681,0.00041671,30]
[362387260,1748245229853,-326.58643474,0.00041671,30]
[362387261,1748245229880,-330.57905915,0.00041671,30]
[362387262,1748245229908,-1093.24920215,0.00041671,120]
[362387263,1748245229935,-242.21631241,0.00041671,120]
[362387264,1748245229964,-21468.71,0.00041671,30]
[362387265,1748245229997,-1708.0,0.00041671,30]
[362387266,1748245230027,-1270.0,0.00041671,30]
[362387267,1748245230062,-209.1,0.00041671,30]
[362387268,1748245230091,-4860.37657298,0.00041671,90]
[362387269,1748245230120,-284.5294225,0.00041671,30]
[362387270,1748245230149,-857.82282898,0.00041671,30]
[362387271,1748245230178,-1440.44250745,0.00041671,30]
[362387272,1748245230207,-1308.31519354,0.00041671,30]
[362387273,1748245230236,-1030.09960092,0.00041671,30]
[362387274,1748245230264,-233.35656563,0.00041671,30]
[362387275,1748245230526,-472.69233096,0.00041671,30]
[362387276,1748245230553,-1016.25496818,0.00041671,30]
[362387277,1748245230581,-997.0,0.00041671,30]
[362387278,1748245230608,-207.83391964,0.00041671,30]
[362387279,1748245230636,-1022.85943288,0.00041671,30]
[362387280,1748245230662,-272.22084724,0.00041671,30]
[362387281,1748245230688,-1067.39873825,0.00041671,30]
[362387282,1748245230715,-974.93862598,0.00041671,30]
[362387283,1748245230743,-482.07195102,0.00041671,30]
[362387284,1748245230770,-2022.49584164,0.00041671,30]
[362387285,1748245230797,-7000.0,0.00041671,120]
[362387286,1748245230823,-306.60833623,0.00041671,120]
[362387287,1748245230850,-16109.24995672,0.00041671,120]
[362387288,1748245230877,-209.1,0.00041671,30]
[362387289,1748245230903,-317.0,0.00041671,120]
[362387290,1748245230930,-1097.90672581,0.00041671,120]
[362387291,1748245230957,-5065.25694596,0.00041671,30]
[362387292,1748245230985,-40000.0,0.00041671,120]
[362387293,1748245231012,-150.0,0.00041671,30]
[362387294,1748245231040,-5396.78704857,0.00041671,120]
[362387295,1748245231067,-199.00220222,0.00041671,120]
[362387296,1748245231092,-160.0,0.00041671,30]
[362387297,1748245231119,-160.0,0.00041671,30]
[362387298,1748245231146,-160.0,0.00041671,30]
[362387299,1748245231173,-160.0,0.00041671,30]
[362387300,1748245231199,-160.0,0.00041671,30]
[362387301,1748245231227,-160.0,0.00041671,30]
[362387302,1748245231253,-160.0,0.00041671,30]
[362387303,1748245231282,-160.0,0.00041671,30]
[362387304,1748245231310,-160.0,0.00041671,30]
[362387305,1748245231338,-160.0,0.00041671,30]
[362387306,1748245231365,-160.0,0.00041671,30]
[362387307,1748245231392,-160.0,0.00041671,30]
[362387308,1748245231418,-160.0,0.00041671,30]
[362387309,1748245231445,-160.0,0.00041671,30]
[362387310,1748245231475,-160.0,0.00041671,30]
[362387311,1748245231503,-160.0,0.00041671,30]
[362387312,1748245231530,-160.0,0.00041671,30]
[362387313,1748245231558,-160.0,0.00041671,30]
[362387314,1748245231586,-160.0,0.00041671,30]
[362387315,1748245231613,-160.0,0.00041671,30]
[362387316,1748245231641,-160.0,0.00041671,30]
[362387317,1748245231670,-160.0,0.00041671,30]
[362387318,1748245231716,-160.0,0.00041671,30]
[362387319,1748245231748,-160.0,0.00041671,30]
[362387320,1748245231778,-160.0,0.00041671,30]
[362387321,1748245231809,-160.0,0.00041671,30]
[362387322,1748245231838,-160.0,0.00041671,30]
[362387323,1748245231867,-160.0,0.00041671,30]
[362387324,1748245231895,-160.0,0.00041671,30]
[362387325,1748245231924,-160.0,0.00041671,30]
[362387326,1748245231952,-160.0,0.00041671,30]
[362387327,1748245231980,-160.0,0.00041671,30]
[362387328,1748245232009,-160.0,0.00041671,30]
[362387329,1748245232039,-160.0,0.00041671,30]
[362387330,1748245232068,-160.0,0.00041671,30]
[362387331,1748245232097,-160.0,0.00041671,30]
[362387332,1748245232127,-160.0,0.00041671,30]
[362387333,1748245232156,-160.0,0.00041671,30]
[362387334,1748245232184,-160.0,0.00041671,30]
[362387335,1748245232211,-160.0,0.00041671,30]
[362387336,1748245232245,-160.0,0.00041671,30]
[362387337,1748245232273,-179.46798377,0.00041671,120]
[362387338,1748245232300,-76000.83,0.00041671,60]
[362387339,1748245232329,-58175.23307837,0.00041671,30]
[362387345,1748245237178,-42985.47270395,0.00041671,30]
[362387346,1748245237206,-213.96630696,0.00041671,30]
[362387347,1748245237233,-1001.24954281,0.00041671,120]
[362387348,1748245237260,-1516863.13041626,0.00041671,30]
[362387349,1748245237287,-2438936.18103002,0.00041671,90]
[362387350,1748245246507,-561063.81896998,0.00041671,90]
[362387351,1748245246536,-6974.0,0.00041671,31]
[362387352,1748245246564,-6974.0,0.00041671,31]
[362387353,1748245246591,-6974.0,0.00041671,31]
[362387354,1748245246618,-6974.0,0.00041671,31]
[362387355,1748245246646,-6974.0,0.00041671,31]
[362387356,1748245246673,-6974.0,0.00041671,31]
[362387357,1748245246701,-10000.0,0.00041671,30]
[362387358,1748245246728,-10000.0,0.00041671,30]
[362387359,1748245246756,-10000.0,0.00041671,30]
[362387360,1748245246784,-10000.0,0.00041671,30]
[362387361,1748245246811,-10000.0,0.00041671,30]
[362387362,1748245246842,-10000.0,0.00041671,30]
[362387363,1748245246870,-10000.0,0.00041671,30]
[362387364,1748245246898,-10000.0,0.00041671,30]
[362387365,1748245246926,-10000.0,0.00041671,30]
[362387366,1748245246954,-10000.0,0.00041671,30]
[362387367,1748245246982,-10000.0,0.00041671,30]
[362387368,1748245247011,-10000.0,0.00041671,30]
[362387369,1748245247038,-10000.0,0.00041671,30]
[362387370,1748245247066,-10000.0,0.00041671,30]
[362387371,1748245247094,-10000.0,0.00041671,30]
[362387372,1748245247120,-10000.0,0.00041671,30]
[362387373,1748245247149,-10000.0,0.00041671,30]
[362387374,1748245247175,-8240.73878871,0.00041671,30]
[362387375,1748245247202,-5000.0,0.00041671,31]
[362387376,1748245247230,-1413105.0,0.00041671,60]
[362387377,1748245247258,-4758.76473699,0.00041671,120]
[362387378,1748245247287,-4758.76473699,0.00041671,120]
[362387379,1748245247314,-4758.76473699,0.00041671,120]
[362387380,1748245247341,-10000.0,0.00041671,120]
[362387381,1748245247367,-512.17991308,0.00041671,120]
[362387382,1748245247393,-657.0,0.00041671,120]
[362387383,1748245247422,-10005.0,0.00041671,120]
[362387384,1748245247451,-805362.86,0.00041671,60]
[362387385,1748245247481,-10178.15229526,0.00041671,120]
[362387386,1748245247509,-299.0,0.00041671,30]
[362387387,1748245247534,-311.89697499,0.00041671,120]
[362387388,1748245247562,-311.89697499,0.00041671,120]
[362387389,1748245247592,-311.89697499,0.00041671,120]
[362387390,1748245247618,-200.0,0.00041671,120]
[362387391,1748245247645,-200.0,0.00041671,120]
[362387392,1748245247677,-200.0,0.00041671,120]
[362387393,1748245247705,-168.0,0.00041671,120]
[362387394,1748245247733,-1735.63580048,0.00041671,120]
[362387395,1748245247763,-1735.63580048,0.00041671,120]
[362387396,1748245247791,-1735.63580048,0.00041671,120]
[362387397,1748245247818,-162.33057143,0.00041671,120]
[362387398,1748245248051,-186.599999,0.00041671,30]
[362387399,1748245248081,-500.0,0.00041671,120]
[362387400,1748245248111,-247.05624017,0.00041671,120]
[362387401,1748245248138,-181.91984666,0.00041671,60]
[362387402,1748245248166,-199.0,0.00041671,120]
[362387403,1748245248194,-169.0,0.00041671,120]
[362387404,1748245248221,-252.95745243,0.00041671,120]
[362387405,1748245248253,-162.0,0.00041671,120]
[362387406,1748245248282,-185.0,0.00041671,120]
[362387407,1748245248309,-592.70009167,0.00041671,30]
[362387408,1748245248337,-11059.37576282,0.00041671,30]
[362387409,1748245248374,-162.35638371,0.00041671,60]
[362387410,1748245248409,-735.610466,0.00041671,30]
[362387411,1748245248438,-868.0487858,0.00041671,30]
[362387412,1748245248472,-566.39465191,0.00041671,120]
[362387413,1748245248503,-774.63265968,0.00041671,30]
[362387414,1748245248534,-5093.40864138,0.00041671,60]
[362387415,1748245248563,-1283.50581191,0.00041671,30]
[362387416,1748245248591,-2187.09936935,0.00041671,30]
[362387417,1748245248620,-2693.35058923,0.00041671,30]
[362387418,1748245248650,-3308.21411427,0.00041671,30]
[362387419,1748245248679,-6627.23104249,0.00041671,30]
[362387420,1748245248707,-364.91595311,0.00041671,120]
[362387421,1748245248735,-3983.61548556,0.00041671,45]
[362387422,1748245248764,-155.89403158,0.00041671,30]
[362387423,1748245248794,-1000.0,0.00041671,30]
[362387424,1748245248824,-1000.0,0.00041671,30]
[362387425,1748245248854,-7957.43,0.00041671,60]
[362387426,1748245248884,-1001.72421015,0.00041671,120]
[362387427,1748245248920,-258.59889613,0.00041671,120]
[362387428,1748245248950,-2106.00071723,0.00041671,120]
[362387429,1748245248980,-881.65176263,0.00041671,120]
[362387430,1748245249009,-300.00907266,0.00041671,30]
[362387431,1748245249039,-320.22839881,0.00041671,30]
[362387432,1748245249067,-300.0,0.00041671,30]
[362387433,1748245249095,-300.0,0.00041671,30]
[362387434,1748245249123,-300.0,0.00041671,30]
[362387435,1748245249151,-300.0,0.00041671,30]
[362387436,1748245249179,-300.0,0.00041671,30]
[362387437,1748245249207,-300.0,0.00041671,30]
[362387438,1748245249235,-300.0,0.00041671,30]
[362387439,1748245249263,-972.8652385,0.00041671,30]
[362387440,1748245249294,-6900.0,0.00041671,120]
[362387441,1748245249324,-1170355.14037339,0.00041671,30]
[362387442,1748245249353,-181.01759865,0.00041671,120]
[362387443,1748245249380,-1704508.47327728,0.00041671,30]
[362387444,1748245253415,-4309766.49455275,0.00041671,30]
[362387445,1748245253443,-5307.66208919,0.00041671,120]
[362387446,1748245253471,-3234.80004134,0.00041671,120]
[362387447,1748245253498,-317.81980748,0.00041671,120]
[362387448,1748245253527,-429.83525973,0.00041671,30]
[362387449,1748245253556,-1128.2439017,0.00041671,30]
[362387450,1748245253584,-1077.0,0.00041671,30]
[362387451,1748245253612,-1077.0,0.00041671,30]
[362387452,1748245253648,-1077.0,0.00041671,30]
[362387453,1748245253682,-1077.0,0.00041671,30]
[362387454,1748245253710,-1682.0,0.00041671,120]
[362387455,1748245253739,-1077.0,0.00041671,30]
[362387456,1748245253767,-162.03908612,0.00041671,120]
[362387457,1748245253799,-160.08069189,0.00041671,120]
[362387458,1748245253829,-160.08069188,0.00041671,120]
[362387459,1748245270753,-507.64071984,0.00024657,30]
[362387460,1748245270796,-639.96,0.000264,120]
[362387461,1748245270826,-699.06826421,0.00027,120]
[362387462,1748245270870,-1646.16734464,0.00027,120]
[362387463,1748245270900,-500.0,0.00027285,120]
[362387464,1748245270929,-500.0,0.00027297,120]
[362387465,1748245270958,-266.148529,0.00027297,120]
[362387466,1748245270987,-1000.0,0.00027369,30]
[362387467,1748245271015,-1000.0,0.00027369,30]
[362387468,1748245271042,-1045.67807621,0.00027369,30]
[362387469,1748245271071,-3043.703916,0.0002739,120]
[362387470,1748245271099,-700.0,0.00027397,120]
[362387471,1748245271128,-700.0,0.00027397,120]
[362387472,1748245271157,-700.0,0.00027397,120]
[362387473,1748245271187,-700.0,0.00027397,120]
[362387474,1748245271216,-450.66009894,0.00027397,120]
[362387475,1748245271245,-2000.0,0.00027397,30]
[362387476,1748245271273,-2000.0,0.00027397,30]
[362387477,1748245271305,-1695.34834238,0.00027397,30]
[362387478,1748245271354,-1000.0,0.00027397,120]
[362387479,1748245271388,-1009.86470573,0.00027397,120]
[362387480,1748245271423,-1241.38344548,0.000274,30]
[362387481,1748245271458,-500.0,0.00028897,120]
[362387482,1748245271489,-2139.16997,0.00028897,120]
[362387483,1748245271519,-500.0,0.00028897,120]
[362387484,1748245271550,-500.0,0.00028897,120]
[362387485,1748245271600,-159.0,0.00029,120]
[362387486,1748245271646,-168.0,0.00029,120]
[362387487,1748245271693,-1800.0,0.00029,30]
[362387488,1748245271747,-900.0,0.0003,31]
[362387489,1748245271794,-233.04,0.00030137,80]
[362387490,1748245271842,-900.0,0.00031,32]
[362387491,1748245271890,-900.0,0.00032,33]
[362387492,1748245271944,-1680.36911239,0.000329,30]
[362387493,1748245271996,-900.0,0.00033,34]
[362387494,1748245272054,-610.87,0.000335,31]
[362387495,1748245272106,-610.87,0.000335,31]
[362387496,1748245272157,-610.87,0.000335,31]
[362387497,1748245272209,-610.87,0.000335,31]
[362387498,1748245272262,-610.87,0.000335,31]
[362387499,1748245272314,-610.87,0.000335,31]
[362387500,1748245272366,-610.87,0.000335,31]
[362387501,1748245272423,-610.87,0.000335,31]
[362387502,1748245272480,-610.87,0.000335,31]
[362387503,1748245272534,-610.87,0.000335,31]
[362387504,1748245272586,-610.87,0.000335,31]
[362387505,1748245272640,-610.87,0.000335,31]
[362387506,1748245272699,-610.87,0.000338,31]
[362387507,1748245272755,-610.87,0.000338,31]
[362387508,1748245273075,-610.87,0.000338,31]
[362387509,1748245273128,-610.87,0.000338,31]
[362387510,1748245273183,-610.87,0.000338,31]
[362387511,1748245273241,-610.87,0.000338,31]
[362387512,1748245273292,-610.87,0.000338,31]
[362387513,1748245273346,-610.87,0.000338,31]
[362387514,1748245273415,-610.87,0.000338,31]
[362387515,1748245273474,-610.87,0.000338,31]
[362387516,1748245273534,-610.87,0.000338,31]
[362387517,1748245273595,-610.87,0.000338,31]
[362387518,1748245273655,-610.87,0.000338,31]
[362387519,1748245273719,-610.87,0.000338,31]
[362387520,1748245273777,-610.87,0.000338,31]
[362387521,1748245273833,-610.87,0.000338,31]
[362387522,1748245273889,-610.87,0.000338,31]
[362387523,1748245273945,-610.87,0.000338,31]
[362387524,1748245273996,-610.87,0.000338,31]
[362387525,1748245274049,-610.87,0.000338,31]
[362387526,1748245274105,-610.87,0.000338,31]
[362387527,1748245274158,-610.87,0.000338,31]
[362387528,1748245274208,-610.87,0.000338,31]
[362387529,1748245274269,-610.87,0.000338,31]
[362387530,1748245274316,-233.04,0.00033904,120]
[362387531,1748245274365,-900.0,0.00034,35]
[362387532,1748245274421,-610.87,0.000342,31]
[362387533,1748245274477,-610.87,0.000342,31]
[362387534,1748245274536,-610.87,0.000342,31]
[362387535,1748245274591,-610.87,0.000342,31]
[362387536,1748245274652,-610.87,0.000342,31]
[362387537,1748245274708,-610.87,0.000342,31]
[362387538,1748245274764,-610.87,0.000342,31]
[362387539,1748245274821,-610.87,0.000342,31]
[362387540,1748245274877,-610.87,0.000342,31]
[362387541,1748245274930,-610.87,0.000342,31]
[362387542,1748245274985,-610.87,0.000342,31]
[362387543,1748245275038,-610.87,0.000342,31]
[362387544,1748245275094,-610.87,0.000342,31]
[362387545,1748245275148,-610.87,0.000342,31]